[Event "LEM Niedersachsen-A-Open 2025"]
[Site "Verden"]
[Date "2025.01.05"]
[Round "7.9"]
[White "Koch, Yannick"]
[Black "Soellig, Martin"]
[Result "1/2-1/2"]
[ECO "E47"]
[WhiteElo "2024"]
[BlackElo "1930"]
[Annotator "RC"]
[PlyCount "84"]
[EventDate "2024.12.27"]
[EventType "swiss"]
[EventCountry "GER"]
[SourceTitle "playchess.com"]
[Source "ChessBase"]
[SourceQuality "1"]
[TimeControl "40/5400+30:1800+30"]

1. d4 {[%emt 0:00:06]} e6 {[%emt 0:00:12]} 2. c4 {[%emt 0:00:16]} Nf6 {[%emt 0:00:11]} 3. Nc3 {[%emt 0:00:13]} Bb4 {[%emt 0:00:06]} 4. e3 {[%emt 0:00:14]} O-O {[%emt 0:01:34]} 5. Bd3 {[%emt 0:00:25]} c5 {[%emt 0:02:36]} 6. Nge2 {[%emt 0:01:02]} d6 {[%emt 1:28:51]} 7. O-O {[%emt 0:02:50]} Bxc3 {[%emt 0:00:00]} 8. Nxc3 {[%emt 0:01:29]} Nc6 {[%emt 0:00:00]} 9. d5 {[%emt 0:06:00]} exd5 {[%emt 0:00:00]} 10. cxd5 {[%emt 0:01:52]} Ne5 {[%emt 0:00:00]} 11. Be2 {[%emt 0:02:10]} Re8 {[%emt 0:00:00]} 12. e4 {[%emt 0:01:52]} a6 {[%emt 0:00:00]} 13. a4 {[%emt 0:00:14]} h6 {[%emt 0:00:00]} 14. h3 {[%emt 0:13:04]} Qe7 {[%emt 0:00:00]} 15. Re1 {[%emt 0:02:25]} Ng6 {[%emt 0:00:00]} 16. Bf1 {[%emt 0:07:19]} Qe5 {[%emt 0:00:00]} 17. g3 {[%emt 0:06:10]} Bd7 {[%emt 0:00:00]} 18. Qc2 {[%emt 0:02:08]} Qh5 {[%emt 0:00:00]} 19. Qe2 {[%emt 0:07:15]} Ne5 {[%emt 0:00:00]} 20. Qxh5 {[%emt 0:02:26]} Nxh5 {[%emt 0:00:00]} 21. Be2 {[%emt 0:04:04]} Nf6 {[%emt 0:00:00]} 22. f4 {[%emt 0:02:23]} Ng6 {[%emt 0:00:00]} 23. Bf1 {[%emt 0:00:50]} Re7 {[%emt 0:00:00]} 24. Bd2 {[%emt 0:04:35]} Rae8 {[%emt 0:00:00]} 25. Bg2 {[%emt 0:01:34]} b5 {[%emt 0:00:00]} 26. axb5 {[%emt 0:00:20]} axb5 {[%emt 0:00:00]} 27. e5 {[%emt 0:08:21]} dxe5 {[%emt 0:00:00]} 28. f5 {[%emt 0:02:13]} Bxf5 {[%emt 0:00:00]} 29. Nxb5 {[%emt 0:00:09]} Rd7 {[%emt 0:00:00]} 30. d6 {[%emt 0:21:31]} e4 {[%emt 0:00:00]} 31. g4 {[%emt 0:00:00]} Be6 {[%emt 0:00:00]} 32. Bxe4 {[%emt 0:00:00]} Nxe4 {[%emt 0:00:00]} 33. Rxe4 {[%emt 0:00:00]} Rb8 {[%emt 0:00:00]} 34. Ra5 {[%emt 0:00:00]} Rdb7 {[%emt 0:00:00]} 35. Nc7 {[%emt 0:00:00]} Rxb2 {[%emt 0:00:00]} 36. Be1 {[%emt 0:00:00]} Rd8 {[%emt 0:00:00]} 37. Nxe6 {[%emt 0:00:00]} fxe6 {[%emt 0:00:00]} 38. Ra6 {[%emt 0:02:16]} e5 {[%emt 0:00:00]} 39. Rc6 {[%emt 0:01:06]} Rc2 {[%emt 0:00:00]} 40. d7 {[%emt 0:00:52]} Nf8 {[%emt 0:00:00]} 41. Rxe5 {[%emt 0:03:46]} Rxd7 {[%emt 0:00:00]} 42. Rcxc5 {[%emt 0:03:58]} Rxc5 {[%emt 0:00:00]} 1/2-1/2

[Event "LEM Niedersachsen-A-Open 2025"]
[Site "Verden"]
[Date "2025.01.05"]
[Round "7.10"]
[White "Muecke, Leonard"]
[Black "Kiesel, Lucas"]
[Result "1/2-1/2"]
[ECO "B21"]
[WhiteElo "1853"]
[BlackElo "2023"]
[Annotator "RC"]
[PlyCount "52"]
[EventDate "2024.12.27"]
[EventType "swiss"]
[EventCountry "GER"]
[SourceTitle "playchess.com"]
[Source "ChessBase"]
[SourceQuality "1"]
[TimeControl "40/5400+30:1800+30"]

1. e4 {[%emt 0:00:52]} c5 {[%emt 0:00:03]} 2. d4 {[%emt 0:00:28]} cxd4 {[%emt 0:00:03]} 3. c3 {[%emt 0:00:38]} dxc3 {[%emt 0:00:11]} 4. Nxc3 {[%emt 0:00:06]} Nc6 {[%emt 0:00:01]} 5. Nf3 {[%emt 0:00:21]} e6 {[%emt 0:00:03]} 6. Bc4 {[%emt 0:00:08]} Bb4 {[%emt 0:00:03]} 7. O-O {[%emt 0:03:11]} Nge7 {[%emt 0:00:08]} 8. Nb5 {[%emt 0:32:27]} d5 {[%emt 0:03:39]} 9. Bf4 {[%emt 0:10:04]} O-O {[%emt 0:40:20]} 10. exd5 {[%emt 0:14:37]} Nxd5 {[%emt 0:12:12]} 11. Bxd5 {[%emt 0:01:04]} exd5 {[%emt 0:00:06]} 12. Nc7 {[%emt 0:04:15]} Rb8 {[%emt 0:00:24]} 13. Qxd5 {[%emt 0:17:21]} Qf6 {[%emt 0:05:15]} 14. Qc4 {[%emt 0:04:08]} Bd6 {[%emt 0:06:39]} 15. Nd5 {[%emt 0:00:07]} Qd8 {[%emt 0:01:02]} 16. Rad1 {[%emt 0:00:32]} Be6 {[%emt 0:09:20]} 17. Qa4 {[%emt 0:04:40]} Bxf4 {[%emt 0:04:02]} 18. Nxf4 {[%emt 0:00:16]} Qf6 {[%emt 0:00:15]} 19. Nxe6 {[%emt 0:01:43]} Qxe6 {[%emt 0:01:54]} 20. Nd4 {[%emt 0:01:47]} Qg4 {[%emt 0:01:26]} 21. f3 {[%emt 0:01:12]} Qf4 {[%emt 0:00:18]} 22. g3 {[%emt 0:00:29]} Qe3+ {[%emt 0:01:10]} 23. Kg2 {[%emt 0:00:09]} Rbd8 {[%emt 0:04:34]} 24. Nxc6 {[%emt 0:00:57]} Rxd1 {[%emt 0:00:09]} 25. Qxd1 {[%emt 0:00:23]} bxc6 {[%emt 0:00:04]} 26. Rf2 {[%emt 0:00:27]} g6 {[%emt 0:02:14]} 1/2-1/2

[Event "LEM Niedersachsen-A-Open 2025"]
[Site "Verden"]
[Date "2025.01.05"]
[Round "7.11"]
[White "Schumann, Steffen"]
[Black "Stoy, Ulf"]
[Result "1/2-1/2"]
[ECO "B06"]
[WhiteElo "2002"]
[BlackElo "1918"]
[Annotator "NA RC"]
[PlyCount "45"]
[EventDate "2024.12.27"]
[EventType "swiss"]
[EventCountry "GER"]
[SourceTitle "playchess.com"]
[Source "ChessBase"]
[SourceQuality "1"]
[TimeControl "40/5400+30:1800+30"]

1. e4 {[%emt 0:00:01]} g6 {[%emt 0:00:10]} 2. d4 {[%emt 0:00:04]} Bg7 {[%emt 0:00:04]} 3. Nc3 {[%emt 0:00:19]} d6 {[%emt 0:00:07]} 4. f4 {[%emt 0:00:14]} a6 {[%emt 0:00:19]} 5. a4 {[%emt 0:02:15]} Nc6 {[%emt 0:01:55]} 6. Be3 {[%emt 0:01:20]} e6 {[%emt 0:03:15]} 7. Nf3 {[%emt 0:01:55]} Nge7 {[%emt 0:00:21]} 8. Bd3 {[%emt 0:09:22]} Nb4 {[%emt 0:08:01]} 9. O-O {[%emt 0:03:01]} Nxd3 {[%emt 0:00:20]} 10. cxd3 {[%emt 0:01:21]} b6 {[%emt 0:03:12]} 11. a5 {[%emt 0:12:45]} b5 $14 {[%emt 0:03:32]} ({Black should try} 11... bxa5 $11 12. Rxa5 O-O) 12. Qe1 {[%emt 0:00:55]} Bb7 {[%emt 0:01:07]} 13. Qh4 {[%emt 0:07:46]} Qd7 {[%emt 0:06:14]} 14. Rac1 {[%emt 0:56:12]} Rc8 {[%emt 1:08:53]} 15. g4 {[%emt 0:00:30]} h5 {[%emt 0:00:00]} 16. g5 {[%emt 0:00:00]} b4 {[%emt 0:00:00]} 17. Ne2 {[%emt 0:00:00]} Qb5 {[%emt 0:00:00]} 18. Rfd1 {[%emt 0:00:00]} Bxe4 {[%emt 0:00:00]} 19. dxe4 {[%emt 0:00:00]} Qxe2 {[%emt 0:00:00]} 20. Qf2 {[%emt 0:00:00]} Qb5 {[%emt 0:00:00]} 21. Qf1 {[%emt 0:00:00]} Qb7 {[%emt 0:00:00]} 22. Qd3 {[%emt 0:00:00]} O-O {[%emt 0:00:00]} 23. Bd2 {[%emt 0:00:00]} 1/2-1/2

[Event "LEM Niedersachsen-A-Open 2025"]
[Site "Verden"]
[Date "2025.01.05"]
[Round "7.12"]
[White "Moeller, Tom"]
[Black "Ploog, Martin"]
[Result "1/2-1/2"]
[ECO "A44"]
[WhiteElo "1802"]
[BlackElo "2001"]
[Annotator "NA RC"]
[PlyCount "37"]
[EventDate "2024.12.27"]
[EventType "swiss"]
[EventCountry "GER"]
[SourceTitle "playchess.com"]
[Source "ChessBase"]
[SourceQuality "1"]
[TimeControl "40/5400+30:1800+30"]

1. d4 {[%emt 0:00:01]} c5 {[%emt 0:00:08]} 2. d5 {[%emt 0:00:03]} e5 {[%emt 0:00:18]} 3. Nc3 {[%emt 0:03:41]} d6 {[%emt 0:00:46]} 4. e4 {[%emt 0:03:30]} a6 {[%emt 0:00:14]} 5. a4 {[%emt 0:02:19]} Be7 {[%emt 0:00:17]} 6. Nf3 {[%emt 0:06:47]} Bg4 {[%emt 0:00:50]} 7. Be2 {[%emt 0:12:25]} Bxf3 {[%emt 0:00:21]} 8. Bxf3 {[%emt 0:00:10]} Bg5 {[%emt 0:00:16]} 9. O-O {[%emt 0:01:52]} Bxc1 {[%emt 0:00:35]} 10. Qxc1 {[%emt 0:00:07]} Nd7 {[%emt 0:00:46]} 11. Nd1 {[%emt 0:05:44]} Ne7 {[%emt 0:15:59]} 12. Ne3 {[%emt 0:11:03]} O-O {[%emt 0:06:50]} 13. Qd2 {[%emt 0:07:39]} g6 {[%emt 0:02:15]} 14. Be2 {[%emt 0:03:31]} f5 {[%emt 0:04:00]} 15. f3 {[%emt 0:01:41]} Nf6 {[%emt 0:03:51]} 16. Bd3 {[%emt 0:03:25]} f4 {[%emt 0:02:31]} 17. Nc4 $14 {[%emt 0:02:19]} Qc7 {[%emt 0:22:11]} 18. a5 {[%emt 0:02:39]} g5 {[%emt 0:03:14]} 19. b4 {[%emt 0:03:50]} 1/2-1/2

[Event "LEM Niedersachsen-A-Open 2025"]
[Site "Verden"]
[Date "2025.01.05"]
[Round "7.13"]
[White "Ehlert, Horst"]
[Black "Amrhein, Thorsten"]
[Result "1/2-1/2"]
[ECO "D02"]
[WhiteElo "1929"]
[BlackElo "1979"]
[Annotator "RC"]
[PlyCount "77"]
[EventDate "2024.12.27"]
[EventType "swiss"]
[EventCountry "GER"]
[SourceTitle "playchess.com"]
[Source "ChessBase"]
[SourceQuality "1"]
[TimeControl "40/5400+30:1800+30"]

1. d4 {[%emt 0:00:32]} d5 {[%emt 0:00:13]} 2. Nf3 {[%emt 0:00:42]} Nf6 {[%emt 0:00:14]} 3. Bf4 {[%emt 0:02:53]} c5 {[%emt 0:01:26]} 4. e3 {[%emt 0:01:04]} Qb6 {[%emt 0:00:29]} 5. Qc1 {[%emt 0:00:24]} cxd4 {[%emt 0:07:26]} 6. exd4 {[%emt 0:01:44]} Nc6 {[%emt 0:03:17]} 7. c3 {[%emt 0:03:24]} Bf5 {[%emt 0:00:13]} 8. Nbd2 {[%emt 0:23:43]} Rc8 {[%emt 0:00:42]} 9. a3 {[%emt 0:00:51]} e6 {[%emt 0:03:50]} 10. Be2 {[%emt 0:08:03]} Be7 {[%emt 0:00:13]} 11. O-O {[%emt 0:00:05]} O-O {[%emt 0:00:16]} 12. b4 {[%emt 0:17:35]} Ne4 {[%emt 0:07:41]} 13. Qb2 {[%emt 0:02:33]} Qd8 {[%emt 0:23:43]} 14. Nxe4 {[%emt 0:08:12]} Bxe4 {[%emt 0:01:13]} 15. Rfe1 {[%emt 0:05:27]} Bd6 {[%emt 0:01:38]} 16. Bxd6 {[%emt 0:04:40]} Qxd6 {[%emt 0:00:03]} 17. Rac1 {[%emt 0:06:09]} Rc7 {[%emt 0:00:42]} 18. Qd2 {[%emt 0:00:45]} Rfc8 {[%emt 0:00:38]} 19. Ng5 {[%emt 0:00:41]} Bf5 {[%emt 0:05:07]} 20. Bd3 {[%emt 0:00:52]} Ne7 {[%emt 0:02:12]} 21. Bxf5 {[%emt 0:02:01]} Nxf5 {[%emt 0:00:12]} 22. g4 {[%emt 0:01:38]} Ne7 {[%emt 0:05:12]} 23. h4 {[%emt 0:02:58]} h6 {[%emt 0:00:38]} 24. Nf3 {[%emt 0:00:50]} Ng6 {[%emt 0:04:08]} 25. h5 {[%emt 0:00:09]} Qf4 {[%emt 0:00:06]} 26. Qxf4 {[%emt 0:02:06]} Nxf4 {[%emt 0:00:01]} 27. Re3 {[%emt 0:00:25]} Rxc3 {[%emt 0:01:38]} 28. Rce1 {[%emt 0:02:50]} Rxe3 {[%emt 0:06:10]} 29. fxe3 {[%emt 0:01:04]} Nd3 {[%emt 0:00:49]} 30. Rd1 {[%emt 0:00:28]} Nb2 {[%emt 0:03:38]} 31. Ra1 {[%emt 0:00:26]} Rc3 {[%emt 0:01:14]} 32. Kf2 {[%emt 0:00:26]} Nc4 {[%emt 0:00:19]} 33. a4 {[%emt 0:00:32]} Nxe3 {[%emt 0:01:51]} 34. g5 {[%emt 0:00:19]} hxg5 {[%emt 0:03:05]} 35. Nxg5 {[%emt 0:00:02]} Nf5 {[%emt 0:00:15]} 36. Nf3 {[%emt 0:00:26]} Rc4 {[%emt 0:00:23]} 37. Ne5 {[%emt 0:01:19]} Nxd4 {[%emt 0:01:23]} 38. Nxc4 {[%emt 0:00:06]} dxc4 {[%emt 0:00:08]} 39. Rc1 {[%emt 0:00:35]} 1/2-1/2

[Event "LEM Niedersachsen-A-Open 2025"]
[Site "Verden"]
[Date "2025.01.05"]
[Round "7.15"]
[White "Belakhin, Alexander"]
[Black "Thieu, Nguyen Gia Bao"]
[Result "0-1"]
[ECO "E24"]
[WhiteElo "1945"]
[BlackElo "1898"]
[Annotator "NA RC"]
[PlyCount "86"]
[EventDate "2024.12.27"]
[EventType "swiss"]
[EventCountry "GER"]
[SourceTitle "playchess.com"]
[Source "ChessBase"]
[SourceQuality "1"]
[TimeControl "40/5400+30:1800+30"]

1. d4 {[%emt 0:00:02]} Nf6 {[%emt 0:00:08]} 2. c4 {[%emt 0:00:07]} e6 {[%emt 0:00:16]} 3. Nc3 {[%emt 0:00:06]} Bb4 {[%emt 0:00:06]} 4. a3 {[%emt 0:00:07]} Bxc3+ {[%emt 0:00:05]} 5. bxc3 {[%emt 0:00:10]} b6 {[%emt 0:00:54]} 6. Bg5 {[%emt 0:00:24]} h6 {[%emt 0:04:17]} 7. Bh4 {[%emt 0:00:13]} g5 {[%emt 0:00:10] E24: Nimzo-Indian: Sämisch: Unusual Black 5th moves and 5...c5 sidelines.} 8. Bg3 {[%emt 0:00:19]} Ne4 {[%emt 0:00:10]} 9. Be5 {[%emt 0:09:38]} f6 {[%emt 0:02:56]} 10. Qd3 {[%emt 0:03:02]} Bb7 {[%emt 0:06:33]} 11. Bg3 {[%emt 0:15:43]} f5 {[%emt 0:04:48]} 12. Be5 {[%emt 0:06:51]} Rg8 {[%emt 0:00:14]} 13. f3 {[%emt 0:06:45]} d6 {[%emt 0:05:03]} 14. fxe4 {[%emt 0:02:53]} Bxe4 {[%emt 0:02:22]} 15. Qh3 {[%emt 0:00:32]} dxe5 {[%emt 0:03:29]} 16. Qxh6 {[%emt 0:02:01]} Qe7 {[%emt 0:01:55]} 17. Nf3 {[%emt 0:04:43]} Nd7 {[%emt 0:02:45]} 18. Qh5+ {[%emt 0:01:01]} Kd8 {[%emt 0:03:38]} 19. Nd2 {[%emt 0:07:25]} Nf6 $19 {[%emt 0:04:47]} 20. Qh3 {[%emt 0:00:19]} exd4 {[%emt 0:01:03]} 21. Nxe4 {[%emt 0:03:24]} Nxe4 {[%emt 0:00:03]} 22. cxd4 {[%emt 0:00:55]} Kd7 {[%emt 0:10:51]} 23. Qd3 {[%emt 0:04:14]} Rad8 {[%emt 0:05:01]} 24. g3 {[%emt 0:00:26]} Ke8 {[%emt 0:00:12]} 25. Bg2 {[%emt 0:01:57]} Nf6 {[%emt 0:00:39]} 26. e4 {[%emt 0:04:51]} c5 {[%emt 0:07:22]} 27. d5 {[%emt 0:06:12]} fxe4 {[%emt 0:03:14]} 28. Qc2 {[%emt 0:03:09]} exd5 {[%emt 0:01:25]} 29. cxd5 {[%emt 0:02:17]} Rxd5 {[%emt 0:00:54]} 30. O-O {[%emt 0:00:19]} Re5 {[%emt 0:06:01]} 31. Qc4 {[%emt 0:01:51]} Qe6 {[%emt 0:04:22]} 32. Qa6 {[%emt 0:00:40]} Qe7 {[%emt 0:04:57]} 33. Qc8+ {[%emt 0:03:31]} Kf7 {[%emt 0:00:56]} 34. Qg4 {[%emt 0:01:11]} Kg7 {[%emt 0:02:11]} 35. Qe2 {[%emt 0:01:20]} Rd8 {[%emt 0:01:25]} 36. Rf2 {[%emt 0:00:28]} e3 {[%emt 0:01:01]} 37. Rf3 {[%emt 0:00:29]} Rd2 {[%emt 0:03:40]} 38. Qc4 {[%emt 0:00:51]} e2 {[%emt 0:00:57]} 39. Re1 {[%emt 0:00:13]} Qd6 {[%emt 0:00:41]} 40. Qc3 {[%emt 0:00:15]} Qd4+ {[%emt 0:01:23]} 41. Kh1 {[%emt 0:30:35]} Qxc3 {[%emt 0:30:16]} 42. Rxc3 {[%emt 0:00:03]} Rd1 {[%emt 0:00:09]} 43. Rc1 {[%emt 0:00:14]} Rxc1 {[%emt 0:00:06]} 0-1

[Event "LEM Niedersachsen-A-Open 2025"]
[Site "Verden"]
[Date "2025.01.05"]
[Round "7.16"]
[White "Martin, Dennis"]
[Black "Freise, Linus"]
[Result "1/2-1/2"]
[ECO "A45"]
[WhiteElo "2005"]
[BlackElo "1723"]
[Annotator "RC"]
[PlyCount "54"]
[EventDate "2024.12.27"]
[EventType "swiss"]
[EventCountry "GER"]
[SourceTitle "playchess.com"]
[Source "ChessBase"]
[SourceQuality "1"]
[TimeControl "40/5400+30:1800+30"]

1. d4 {[%emt 0:00:02]} e6 {[%emt 0:00:08]} 2. e4 {[%emt 0:00:26]} c5 {[%emt 0:02:24]} 3. d5 {[%emt 0:02:02]} exd5 {[%emt 0:00:54]} 4. exd5 {[%emt 0:00:02]} d6 {[%emt 0:00:14]} 5. Bd3 {[%emt 0:00:34]} Nf6 {[%emt 0:03:48]} 6. c4 {[%emt 0:00:28]} Be7 {[%emt 0:07:08]} 7. Nc3 {[%emt 0:01:33]} O-O {[%emt 0:00:34]} 8. Nge2 {[%emt 0:00:37]} Nbd7 {[%emt 0:01:41]} 9. f4 {[%emt 0:00:04]} Re8 {[%emt 0:01:02]} 10. O-O {[%emt 0:00:57]} Nf8 {[%emt 0:04:06]} 11. Qc2 {[%emt 0:05:35]} a6 {[%emt 0:06:49]} 12. b3 {[%emt 0:00:57]} Bd7 {[%emt 0:06:53]} 13. a4 {[%emt 0:03:01]} Rb8 {[%emt 0:00:52]} 14. Ng3 {[%emt 0:01:42]} Ng6 {[%emt 0:02:22]} 15. Nce4 {[%emt 0:03:54]} b5 {[%emt 0:06:38]} 16. axb5 {[%emt 0:01:03]} axb5 {[%emt 0:00:24]} 17. Bb2 {[%emt 0:00:07]} bxc4 {[%emt 0:00:22]} 18. bxc4 {[%emt 0:00:08]} Nxe4 {[%emt 0:04:28]} 19. Nxe4 {[%emt 0:00:42]} Bf5 {[%emt 0:00:26]} 20. Qc3 {[%emt 0:01:28]} Rxb2 {[%emt 0:03:49]} 21. Qxb2 {[%emt 0:06:32]} Bxe4 {[%emt 0:00:29]} 22. Bxe4 {[%emt 0:00:02]} Bf6 {[%emt 0:00:07]} 23. Qc2 {[%emt 0:00:22]} Bxa1 {[%emt 0:14:15]} 24. Rxa1 {[%emt 0:00:10]} Qf6 {[%emt 0:00:07]} 25. Rd1 {[%emt 0:02:03]} Qxf4 {[%emt 0:00:51]} 26. Bxg6 {[%emt 0:01:15]} Qe3+ {[%emt 0:03:01]} 27. Qf2 {[%emt 0:00:06]} hxg6 {[%emt 0:04:40]} 1/2-1/2

[Event "LEM Niedersachsen-A-Open 2025"]
[Site "Verden"]
[Date "2025.01.05"]
[Round "7.17"]
[White "Ophardt, Paul"]
[Black "Stein, Luis"]
[Result "1-0"]
[ECO "A40"]
[WhiteElo "2015"]
[BlackElo "1899"]
[Annotator "RC"]
[PlyCount "93"]
[EventDate "2024.12.27"]
[EventType "swiss"]
[EventCountry "GER"]
[SourceTitle "playchess.com"]
[Source "ChessBase"]
[SourceQuality "1"]
[TimeControl "40/5400+30:1800+30"]

1. d4 {[%emt 0:00:04]} e6 {[%emt 0:00:05]} 2. c4 {[%emt 0:00:06]} b6 {[%emt 0:00:02]} 3. a3 {[%emt 0:00:06]} Bb7 {[%emt 0:00:05]} 4. Nc3 {[%emt 0:00:05]} f5 {[%emt 0:00:02]} 5. d5 {[%emt 0:02:39]} e5 {[%emt 0:02:15]} 6. e4 {[%emt 0:00:51]} Ne7 {[%emt 0:05:51]} 7. Nf3 {[%emt 0:08:23]} d6 {[%emt 0:04:19]} 8. Bd3 {[%emt 0:11:18]} f4 {[%emt 0:02:43]} 9. g3 {[%emt 0:02:28]} fxg3 {[%emt 0:01:02]} 10. fxg3 {[%emt 0:00:48]} h6 {[%emt 0:04:29]} 11. Nh4 {[%emt 0:06:57]} Nd7 {[%emt 0:00:40]} 12. O-O {[%emt 0:05:57]} Nf6 {[%emt 0:02:40]} 13. Be2 {[%emt 0:04:20]} Qc8 {[%emt 0:07:58]} 14. Be3 {[%emt 0:16:20]} h5 {[%emt 0:05:37]} 15. Bg5 {[%emt 0:05:52]} Neg8 {[%emt 0:05:05]} 16. Ng6 {[%emt 0:03:35]} Rh7 {[%emt 0:00:06]} 17. Nxf8 {[%emt 0:00:24]} Kxf8 {[%emt 0:00:04]} 18. Kg2 {[%emt 0:02:42]} Ke8 {[%emt 0:02:15]} 19. b4 {[%emt 0:01:43]} a5 {[%emt 0:10:32]} 20. Qd3 {[%emt 0:01:20]} Qd7 {[%emt 0:03:20]} 21. Bf3 {[%emt 0:06:07]} Bc8 {[%emt 0:04:06]} 22. Kh1 {[%emt 0:00:47]} g6 {[%emt 0:01:44]} 23. Rfc1 {[%emt 0:03:35]} Qh3 {[%emt 0:04:57]} 24. Bg2 {[%emt 0:01:45]} Ng4 {[%emt 0:01:32]} 25. Bxh3 {[%emt 0:01:14]} Nf2+ {[%emt 0:00:04]} 26. Kg2 {[%emt 0:00:14]} Nxd3 {[%emt 0:00:07]} 27. Bxc8 {[%emt 0:02:14]} Rxc8 {[%emt 0:02:14]} 28. Rcb1 {[%emt 0:00:31]} axb4 {[%emt 0:02:51]} 29. axb4 {[%emt 0:00:16]} c5 {[%emt 0:10:53]} 30. dxc6 {[%emt 0:00:24]} Rhc7 {[%emt 0:00:38]} 31. b5 {[%emt 0:02:04]} Rb8 {[%emt 0:10:17]} 32. Rd1 {[%emt 0:00:44]} Nb2 {[%emt 0:00:04]} 33. Rxd6 {[%emt 0:00:39]} Nxc4 {[%emt 0:00:19]} 34. Rxg6 {[%emt 0:00:23]} Kf7 {[%emt 0:00:32]} 35. Rxg8 {[%emt 0:01:11]} Kxg8 {[%emt 0:02:18]} 36. Nd5 {[%emt 0:00:47]} Rf7 {[%emt 0:01:15]} 37. Rc1 {[%emt 0:01:19]} Nd6 {[%emt 0:01:29]} 38. c7 {[%emt 0:01:27]} Rc8 {[%emt 0:00:43]} 39. Ne7+ {[%emt 0:00:48]} Rxe7 {[%emt 0:00:36]} 40. Bxe7 {[%emt 0:00:06]} Nxb5 {[%emt 0:00:30]} 41. Bd8 {[%emt 0:30:53]} Kg7 {[%emt 0:09:55]} 42. Rc6 {[%emt 0:00:00]} Kf7 {[%emt 0:03:18]} 43. Kh3 {[%emt 0:00:00]} Ke8 {[%emt 0:00:45]} 44. Rxb6 {[%emt 0:00:00]} Nxc7 {[%emt 0:00:21]} 45. Bxc7 {[%emt 0:00:00]} Rxc7 {[%emt 0:00:02]} 46. Re6+ {[%emt 0:00:00]} Kf8 {[%emt 0:00:03]} 47. Rxe5 {[%emt 0:00:00]} 1-0

[Event "LEM Niedersachsen-A-Open 2025"]
[Site "Verden"]
[Date "2025.01.05"]
[Round "7.18"]
[White "Rieping, Lea"]
[Black "Zweigait, Leon"]
[Result "1/2-1/2"]
[ECO "D00"]
[WhiteElo "1973"]
[BlackElo "1865"]
[Annotator "NA RC"]
[PlyCount "68"]
[EventDate "2024.12.27"]
[EventType "swiss"]
[EventCountry "GER"]
[SourceTitle "playchess.com"]
[Source "ChessBase"]
[SourceQuality "1"]
[TimeControl "40/5400+30:1800+30"]

1. d4 {[%emt 0:00:06]} Nf6 {[%emt 0:00:11]} 2. Nc3 {[%emt 0:00:05]} d5 {[%emt 0:00:13]} 3. Bf4 {[%emt 0:00:06]} a6 {[%emt 0:00:05]} 4. e3 {[%emt 0:00:18]} e6 {[%emt 0:00:08]} 5. Nf3 {[%emt 0:00:30]} b5 {[%emt 0:00:49]} 6. Bd3 {[%emt 0:03:16] D00: 1 d4 d5: Unusual lines.} Nbd7 {[%emt 0:00:23]} 7. O-O {[%emt 0:01:35]} Bb7 {[%emt 0:02:39]} 8. Ne5 {[%emt 0:00:29]} c5 {[%emt 0:00:44]} 9. dxc5 {[%emt 0:02:31]} Bxc5 {[%emt 0:03:45]} 10. Ne2 {[%emt 0:02:22]} O-O {[%emt 0:03:04]} 11. Nd4 {[%emt 0:03:47]} Nxe5 {[%emt 0:00:58]} 12. Bxe5 {[%emt 0:00:06]} Nd7 {[%emt 0:00:06]} 13. Bg3 {[%emt 0:05:01]} Qe7 {[%emt 0:11:02]} 14. Re1 {[%emt 0:03:04]} Rac8 {[%emt 0:06:42]} 15. Nb3 {[%emt 0:11:34]} e5 {[%emt 0:07:44]} 16. Nxc5 {[%emt 0:00:20]} (16. a4 $14 {is superior.}) 16... Rxc5 {[%emt 0:00:23]} 17. c3 {[%emt 0:05:10]} Rd8 {[%emt 0:05:39]} 18. a4 {[%emt 0:01:55]} Qe6 {[%emt 0:05:14]} 19. axb5 {[%emt 0:04:54]} axb5 {[%emt 0:00:08]} 20. Qb3 {[%emt 0:03:09]} Qb6 {[%emt 0:05:39]} 21. Bf5 $14 {[%emt 0:00:22]} ({White should play} 21. Qb4 $16) 21... Qc6 {[%emt 0:01:11]} 22. Bxd7 {[%emt 0:02:39]} Rxd7 {[%emt 0:01:58]} 23. f3 {[%emt 0:00:05]} f6 {[%emt 0:01:46]} 24. e4 {[%emt 0:00:57]} Kf8 {[%emt 0:00:45]} 25. exd5 {[%emt 0:00:19]} Qxd5 {[%emt 0:00:52]} 26. Qxd5 {[%emt 0:05:53]} Rcxd5 {[%emt 0:00:11]} 27. Kf2 {[%emt 0:00:13]} Rd2+ {[%emt 0:01:00]} 28. Re2 {[%emt 0:43:44]} Rxe2+ {[%emt 0:01:22]} 29. Kxe2 {[%emt 0:00:00]} Bd5 {[%emt 0:00:05]} 30. Rd1 {[%emt 0:00:00]} Ke7 {[%emt 0:02:05]} 31. Bf2 {[%emt 0:00:00]} Ke6 {[%emt 0:00:10]} 32. Ra1 {[%emt 0:00:00]} Bc4+ {[%emt 0:00:19]} 33. Ke1 {[%emt 0:00:00]} Kf5 {[%emt 0:01:02]} 34. Ra7 {[%emt 0:00:00]} Rxa7 {[%emt 0:01:32]} 1/2-1/2

[Event "LEM Niedersachsen-A-Open 2025"]
[Site "Verden"]
[Date "2025.01.05"]
[Round "7.19"]
[White "Aden, Keno"]
[Black "Gottschalk, Siegfried"]
[Result "1-0"]
[ECO "D73"]
[WhiteElo "1889"]
[BlackElo "1936"]
[Annotator "NA RC"]
[PlyCount "49"]
[EventDate "2024.12.27"]
[EventType "swiss"]
[EventCountry "GER"]
[SourceTitle "playchess.com"]
[Source "ChessBase"]
[SourceQuality "1"]
[TimeControl "40/5400+30:1800+30"]

1. d4 {[%emt 0:00:03]} Nf6 {[%emt 0:00:10]} 2. c4 {[%emt 0:00:02]} g6 {[%emt 0:00:10]} 3. Nf3 {[%emt 0:00:06]} Bg7 {[%emt 0:00:09]} 4. g3 {[%emt 0:00:09]} c5 {[%emt 0:01:29]} 5. Bg2 {[%emt 0:02:42]} cxd4 {[%emt 0:02:13]} 6. Nxd4 {[%emt 0:00:08]} O-O {[%emt 0:00:10]} 7. O-O {[%emt 0:01:21]} d5 {[%emt 0:02:36]} 8. cxd5 {[%emt 0:08:04]} Nxd5 {[%emt 0:01:07]} 9. Nb5 {[%emt 0:02:47]} a6 {[%emt 0:03:27]} 10. Bxd5 {[%emt 0:06:19]} axb5 {[%emt 0:00:31]} 11. Qb3 {[%emt 0:00:15]} Nc6 {[%emt 0:01:33]} 12. Bxc6 {[%emt 0:09:28]} bxc6 {[%emt 0:00:34]} 13. Rd1 {[%emt 0:01:13]} Qc7 {[%emt 0:03:34]} 14. Nc3 {[%emt 0:04:53]} Bh3 {[%emt 0:16:10]} 15. Be3 {[%emt 0:02:01]} Rfd8 $15 {[%emt 0:02:38]} 16. Rxd8+ {[%emt 0:11:56]} Rxd8 {[%emt 0:04:02]} 17. Rd1 {[%emt 0:05:04]} h5 {[%emt 0:06:41]} 18. f3 {[%emt 0:17:48]} b4 {[%emt 0:21:40]} 19. Rxd8+ {[%emt 0:07:16]} Qxd8 {[%emt 0:00:27]} 20. Ne4 {[%emt 0:01:38]} Be6 {[%emt 0:11:13]} 21. Qxb4 {[%emt 0:06:01]} Qd1+ {[%emt 0:00:30]} 22. Kf2 {[%emt 0:01:37]} Qh1 {[%emt 0:02:10]} 23. Qb8+ {[%emt 0:00:16]} Kh7 {[%emt 0:00:12]} 24. Ng5+ {[%emt 0:00:06]} Kh6 {[%emt 0:00:06]} 25. Nxe6+ {[%emt 0:00:11]} 1-0